bitfinex/quotes_ETHUSD_20260227
["timestamp","ask_amount","ask_price","bid_price","bid_amount"]
[1772201437658,0.45451029,1959.8,1959.2,2.33698211]
[1772201438948,0.45451029,1959.8,1959.2,1.061]
[1772201439369,0.50376098,1959.6,1958.9,1.062]
[1772201440076,0.50376098,1959.6,1958.9,1.19260942]
[1772201441081,0.50376098,1959.6,1959.3,0.0011]
[1772201442687,0.47358535,1959.9,1959.3,1.0631]
[1772201443482,0.47358535,1959.9,1959.4,1.27590078]
[1772201443974,0.001,1960.0,1959.4,1.27590078]
[1772201444147,0.47458535,1960.0,1959.4,1.27590078]
[1772201444782,0.47358535,1959.9,1959.5,1.063]
[1772201445676,0.47358535,1959.9,1959.5,2.33880283]
[1772201445858,0.001,1960.0,1959.5,2.33880283]
[1772201446176,0.47358535,1960.6,1959.6,0.46664534]
[1772201446551,0.47358535,1960.6,1959.7,1.064]
[1772201448175,0.47358535,1960.4,1959.8,1.27564037]
[1772201448582,0.47358535,1960.4,1959.5,5.103143]
[1772201448775,0.47358535,1960.4,1959.6,1.064]
[1772201449778,0.47358535,1960.4,1959.6,1.53064534]
[1772201450476,0.47358535,1960.5,1959.8,0.46664534]
[1772201450994,0.47358535,1960.7,1959.8,0.46664534]
[1772201451192,3.90391326,1960.9,1959.8,0.46664534]
[1772201451193,0.47358535,1960.9,1959.8,0.46664534]
[1772201452211,0.47358535,1960.9,1960.0,0.46664534]
[1772201452423,0.47458535,1961.1,1960.4,0.46664534]
[1772201452710,0.47358535,1961.0,1960.4,1.064]
[1772201453175,0.47358535,1961.0,1960.5,1.064]
[1772201453693,0.001,1960.8,1960.5,1.064]
[1772201454195,1.27580134,1961.1,1960.5,1.53064534]
[1772201454399,0.47358535,1961.0,1960.3,1.275315]
[1772201454585,0.47358535,1960.9,1960.5,2.33917881]
[1772201455474,0.47358535,1960.9,1960.5,1.064]
[1772201455781,0.47358535,1960.9,1960.5,2.33918384]
[1772201455985,0.47358535,1960.9,1960.5,1.064]
[1772201456208,0.47358535,1960.9,1960.5,2.33917537]
[1772201457507,0.47358535,1960.8,1960.2,1.066]
[1772201458013,0.47358535,1960.8,1960.0,1.2755102]
[1772201458213,0.47358535,1960.8,1960.2,1.066]
[1772201459378,0.47358535,1960.8,1959.8,5.10243276]
[1772201459379,0.47358535,1960.6,1959.8,5.10243276]
[1772201459584,0.47358535,1960.6,1960.0,1.065]
[1772201459806,0.47358535,1960.6,1959.9,1.065]
[1772201460702,0.47358535,1960.6,1959.9,1.53164534]
[1772201461210,0.47358535,1960.6,1959.8,0.46664534]
[1772201461413,0.47358535,1960.6,1960.1,1.27544513]
[1772201461590,5.0999592,1961.0,1960.1,1.74209047]
[1772201461591,0.47358535,1960.9,1960.1,1.74209047]
[1772201461793,0.47358535,1960.9,1960.2,1.066]
[1772201462107,0.47358535,1960.9,1960.1,2.34144513]
[1772201462483,0.47358535,1960.9,1960.1,2.80809047]
[1772201463623,0.47358535,1960.7,1959.8,1.066]
[1772201466141,0.47358535,1960.5,1959.9,1.27667528]
[1772201466543,0.001,1960.8,1960.0,0.46664534]
[1772201467126,0.001,1960.8,1960.1,2.5396412]
[1772201467333,0.001,1960.8,1960.3,0.46664534]
[1772201468319,0.001,1960.8,1960.4,1.27524994]
[1772201468719,0.47458535,1961.1,1960.4,1.74189528]
[1772201469612,0.47458535,1961.1,1960.5,1.067]
[1772201470007,1.74938398,1961.1,1960.5,1.067]
[1772201470333,0.47458535,1961.1,1960.6,1.27511986]
[1772201470507,0.001,1961.1,1960.6,1.27511986]
[1772201470709,0.001,1961.1,1960.6,1.7583093]
[1772201470935,0.47697129,1961.4,1960.7,0.48318944]
[1772201471251,0.47697129,1961.7,1960.7,0.48318944]
[1772201471418,0.47697129,1961.7,1960.8,1.067]
[1772201471622,0.47697129,1961.7,1960.8,1.55018944]
[1772201471810,0.47697129,1961.7,1960.9,0.48318944]
[1772201472009,1.27433989,1961.8,1960.9,0.48318944]
[1772201472505,0.47697129,1961.8,1961.0,0.48318944]
[1772201472721,0.47697129,1961.8,1961.0,1.067]
[1772201473643,0.47697129,1961.8,1960.7,0.48318944]
[1772201473942,0.47697129,1961.8,1960.8,0.826]
[1772201474438,1.27440485,1961.7,1960.5,1.75831406]
[1772201474608,0.47697129,1961.6,1960.5,1.75831406]
[1772201474805,0.47697129,1961.6,1960.4,0.826]
[1772201475107,0.47697129,1961.6,1960.5,0.48318944]
[1772201475526,0.47697129,1961.6,1960.4,2.10122346]
[1772201475724,0.47697129,1961.6,1960.2,1.75852113]
[1772201475930,0.47697129,1961.6,1960.2,2.82352113]
[1772201476445,0.47697129,1961.6,1960.3,0.48318944]
[1772201476649,0.47697129,1961.4,1960.4,1.27524994]
[1772201477322,0.47697129,1961.4,1960.4,1.75843938]
[1772201478724,0.47697129,1961.2,1960.4,0.48318944]
[1772201478937,0.47697129,1961.2,1960.4,1.75840658]
[1772201479432,0.47697129,1961.2,1960.4,1.066]
[1772201479837,0.47697129,1961.2,1960.4,1.54918944]
[1772201480143,0.47697129,1961.2,1960.5,0.48318944]
[1772201480341,1.27466476,1961.3,1960.5,0.48318944]
[1772201480541,0.47697129,1961.8,1960.5,0.48318944]
[1772201480741,5.57437839,1961.8,1960.7,0.48318944]
[1772201481120,0.001,1961.3,1960.7,0.48318944]
[1772201482342,0.001,1961.3,1960.8,1.066]
[1772201482545,0.001,1961.3,1960.9,0.48318944]
[1772201482942,1.27433989,1961.8,1961.0,0.48318944]
[1772201484147,1.27433989,1961.8,1961.1,1.54918944]
[1772201484343,0.001,1961.9,1961.2,0.48318944]
[1772201484847,0.001,1961.9,1961.3,1.27466476]
[1772201485150,0.001,1961.9,1961.4,0.48318944]
[1772201485529,0.001,1961.9,1961.5,1.066]
[1772201485730,0.001,1962.1,1961.6,0.48318944]
[1772201486519,0.47797129,1962.1,1961.7,1.066]
[1772201486721,0.001,1962.1,1961.7,1.066]
[1772201488332,0.001,1962.4,1961.8,0.48318944]
[1772201488530,1.27496154,1962.4,1961.7,0.48318944]
[1772201488750,0.001,1962.4,1961.7,0.48318944]
[1772201489288,0.47797129,1962.4,1961.8,2.10033989]
[1772201489583,0.47797129,1962.4,1961.8,1.27433989]
[1772201489757,0.47797129,1962.4,1961.8,2.33833989]
[1772201490652,0.47797129,1962.4,1961.5,5.0980974]
[1772201490653,0.47797129,1962.4,1961.5,2.33948832]
[1772201490859,0.47797129,1962.4,1961.3,5.09863412]
[1772201491093,0.47697129,1962.2,1961.4,1.27459977]
[1772201491352,0.47697129,1962.2,1961.1,5.58224395]
[1772201491353,0.47697129,1962.2,1961.1,2.34074613]
[1772201491740,0.47697129,1962.2,1961.1,2.82393557]
[1772201492255,0.47697129,1962.2,1960.8,1.066]
[1772201493383,0.47697129,1961.8,1960.9,1.27492477]
[1772201493595,0.47697129,1961.8,1960.8,1.27493897]
[1772201493762,0.47697129,1961.8,1960.8,2.33993897]
[1772201496050,0.47697129,1961.6,1960.8,2.33993897]
[1772201497354,0.47697129,1961.6,1960.8,2.34193897]
[1772201497554,0.47697129,1961.6,1960.8,2.82512841]
[1772201498165,0.47697129,1961.4,1960.8,2.82512841]
[1772201498365,0.47697129,1961.4,1960.8,2.34193897]
[1772201499286,0.47697129,1961.4,1960.8,1.067]
[1772201499893,5.09813917,1961.6,1960.8,1.54821036]
[1772201499894,1.78476525,1961.6,1960.8,1.54821036]
[1772201500464,0.51026766,1961.6,1960.9,1.79463114]
[1772201500882,0.51827305,1961.8,1961.0,0.51970637]
[1772201501194,1.79264834,1961.8,1961.0,0.51970637]
[1772201502765,1.79264834,1961.8,1961.1,1.27479475]
[1772201503668,0.51827305,1961.7,1961.1,1.27479475]
[1772201504889,1.79274287,1961.6,1961.1,1.27479475]
[1772201505089,0.51827305,1961.6,1961.1,1.27479475]
[1772201506377,0.51827305,1961.6,1960.7,0.51970637]
[1772201506597,0.51827305,1961.6,1961.0,0.0011]
[1772201506968,0.51827305,1961.4,1961.0,0.0011]
[1772201509170,0.51827305,1961.2,1961.0,0.0011]
[1772201510910,0.51827305,1961.4,1961.0,0.0011]
[1772201511117,1.27446982,1961.6,1961.0,0.0011]
[1772201511272,0.51827305,1961.5,1960.9,0.0011]
[1772201513284,1.79287282,1961.4,1960.9,0.0011]
[1772201518290,0.51827305,1961.3,1960.9,0.0011]
[1772201518480,0.51827305,1961.3,1960.7,0.0011]
[1772201519016,0.51827305,1961.1,1960.7,0.0011]
[1772201520308,0.51827305,1961.1,1961.0,0.0011]
[1772201520514,0.51827305,1961.1,1960.7,0.0011]
[1772201521021,1.79313281,1961.0,1960.9,0.0011]
[1772201521178,1.79313281,1961.0,1960.4,0.0011]
[1772201521179,0.51827305,1960.9,1960.4,0.0011]
[1772201522205,1.27473432,1961.2,1960.6,0.51970637]
[1772201524722,1.27567082,1961.3,1960.8,0.51970637]
[1772201525518,0.001,1961.3,1960.8,0.51970637]
[1772201526008,1.27449508,1961.6,1960.9,0.51970637]
[1772201526307,1.27432534,1961.9,1960.9,0.51970637]
[1772201526485,1.27432534,1961.9,1961.1,0.51970637]
[1772201527137,1.27432534,1961.9,1961.3,0.51970637]
[1772201527489,5.61622808,1962.0,1961.3,0.51970637]
[1772201527490,1.79351468,1962.0,1961.3,0.51970637]
[1772201528605,0.51827305,1961.9,1961.3,0.51970637]
[1772201529112,0.51827305,1961.9,1961.4,1.27459977]
[1772201529292,0.51827305,1961.9,1961.2,0.51970637]
[1772201529615,0.51827305,1961.9,1961.2,1.58370637]
[1772201530410,0.51827305,1961.9,1960.9,1.56073355]
[1772201530604,0.51827305,1961.9,1961.0,0.49673355]
[1772201531225,0.51827305,1961.9,1961.2,0.49673355]
[1772201532322,0.50478601,1961.8,1960.9,1.55973355]
[1772201532525,0.50478601,1961.7,1960.9,1.77164567]
[1772201532828,0.50478601,1961.7,1960.7,0.49673355]
[1772201533196,0.50478601,1961.6,1960.9,0.49673355]
[1772201533628,0.50478601,1961.6,1960.7,5.59669275]
[1772201534125,0.50478601,1961.6,1960.8,0.49673355]
[1772201535623,1.7793208,1961.5,1960.8,1.77168285]
[1772201536816,1.7793208,1961.5,1960.9,0.49673355]
[1772201537525,1.77945077,1961.3,1960.6,5.59820225]
[1772201537724,0.50478601,1961.5,1960.7,0.49673355]
[1772201538022,1.77922534,1961.7,1960.7,0.49673355]
[1772201538224,1.23,1961.8,1960.7,0.49673355]
[1772201538523,2.50434865,1961.8,1960.7,0.49673355]
[1772201539028,1.23,1961.8,1960.7,0.49673355]
[1772201539197,0.50478601,1961.7,1960.7,1.55973355]
[1772201539405,0.50478601,1961.7,1960.8,0.49673355]
[1772201539910,1.77925583,1961.6,1960.9,1.27492477]
[1772201540823,0.50478601,1961.5,1960.8,1.77168077]
[1772201541002,1.77925583,1961.6,1960.9,0.49673355]
[1772201541534,0.50478601,1961.5,1960.9,0.49673355]
[1772201542198,0.50478601,1961.5,1960.9,1.77164078]
[1772201542199,1.77934646,1961.5,1960.9,1.77164078]
[1772201543315,0.50478601,1961.5,1961.0,0.49673355]
[1772201543509,1.27449132,1961.6,1961.0,0.49673355]
[1772201544224,3.00819086,1961.7,1961.1,1.27479475]
[1772201544430,3.00819086,1961.7,1961.1,1.7715283]
[1772201545111,3.01019086,1961.7,1961.2,0.49673355]
[1772201545311,3.01119086,1961.7,1961.2,0.49673355]
[1772201546338,1.27453479,1961.5,1961.0,0.49673355]
[1772201546940,5.60270784,1961.6,1961.0,1.77159305]
[1772201547125,1.77925583,1961.6,1961.0,0.49673355]
[1772201547439,1.77925583,1961.6,1961.0,1.77158952]
[1772201547641,1.77925583,1961.6,1961.0,0.49673355]
[1772201547938,1.77925583,1961.6,1961.0,1.77158978]
[1772201548145,1.77925583,1961.6,1961.0,0.49673355]
[1772201548726,0.50478601,1961.5,1961.0,0.49673355]
[1772201548929,0.50478601,1961.5,1960.8,1.7727706]
[1772201550342,0.50478601,1961.5,1960.8,1.27603705]
[1772201550528,0.50478601,1961.4,1960.8,1.7727706]
[1772201552749,0.50478601,1961.3,1960.8,0.0011]
[1772201553243,0.50478601,1961.2,1960.7,0.0011]
[1772201554946,0.50478601,1961.0,1960.7,0.0011]
[1772201557186,0.50478601,1960.9,1960.7,0.0011]
[1772201557751,0.5398383,1960.8,1960.4,0.0011]
[1772201558540,0.5398383,1960.8,1960.7,0.0011]
[1772201558936,0.5398383,1960.8,1960.5,0.0011]
[1772201559147,0.5398383,1960.8,1960.2,0.0011]
[1772201559148,0.5398383,1960.6,1960.2,0.0011]
[1772201559347,0.5398383,1960.4,1960.2,0.0011]
[1772201561359,0.5420737,1960.3,1960.2,0.0011]
[1772201563343,1.8173887,1960.3,1960.2,0.0011]
[1772201564145,1.8173887,1960.3,1959.9,0.0011]
[1772201564146,0.5420737,1960.2,1959.9,0.0011]
[1772201564350,0.5420737,1960.0,1959.9,0.0011]
[1772201564982,0.5420737,1960.0,1959.5,0.0011]
[1772201565741,0.5420737,1959.8,1959.5,0.0011]
[1772201566073,1.238,1959.7,1959.5,0.0011]
[1772201567272,0.5420737,1959.7,1959.5,0.0011]
[1772201567464,1.7810737,1959.7,1959.5,0.0011]
[1772201568578,3.05677916,1959.7,1959.5,0.0011]
[1772201569159,0.5420737,1959.6,1959.5,0.0011]
[1772201569957,2.51870546,1959.7,1959.5,0.0011]
[1772201570251,2.51857573,1959.9,1959.5,0.52428925]
[1772201570467,2.51857573,1959.9,1959.6,0.0033]
[1772201570672,1.243,1959.9,1959.6,0.0033]
[1772201570867,1.243,1960.0,1959.7,0.52428925]
[1772201571051,1.27549598,1960.1,1959.7,0.52428925]
[1772201571264,0.5420737,1960.0,1959.7,0.0044]
[1772201571765,1.244,1959.9,1959.7,0.0044]
[1772201573777,2.51960981,1959.9,1959.7,0.0044]
[1772201574692,0.5420737,1959.8,1959.5,0.0011]
[1772201577204,1.249,1959.8,1959.5,0.0011]
[1772201578192,1.249,1959.8,1959.5,0.52428925]
[1772201578491,6.35190579,1960.1,1959.5,0.52428925]
[1772201578713,3.06751883,1960.1,1959.5,0.52428925]
[1772201579269,3.06751883,1960.1,1959.5,1.80006963]
[1772201579514,1.25,1960.1,1959.6,0.52318925]
[1772201580013,1.251,1960.4,1959.7,0.52318925]
[1772201581111,0.5420737,1960.3,1959.7,0.52318925]
[1772201581409,1.81745376,1960.2,1959.6,0.52318925]
[1772201582489,2.52626028,1960.4,1959.7,0.0011]
[1772201582704,2.52626028,1960.4,1959.8,0.52318925]
[1772201582899,0.001,1960.0,1959.8,0.52318925]
[1772201583281,1.251,1960.4,1959.9,0.52318925]
[1772201584520,0.5420737,1960.8,1959.9,0.52318925]
[1772201585402,0.5420737,1960.8,1960.1,0.52318925]
[1772201585612,1.8170635,1960.8,1960.1,0.52318925]
[1772201585791,0.5420737,1960.8,1960.1,0.52318925]
[1772201586509,1.81706968,1960.8,1960.1,0.52318925]
[1772201587882,0.5420737,1960.8,1960.3,0.52318925]
[1772201588103,1.27496574,1960.9,1960.3,0.52318925]
[1772201588410,1.81696622,1961.0,1960.3,0.52318925]
[1772201589287,0.5420737,1961.0,1960.3,0.52318925]
[1772201589497,0.001,1961.1,1960.3,0.52318925]
[1772201590384,0.001,1961.1,1960.5,0.53163811]
[1772201590588,1.81357905,1961.4,1960.6,0.53163811]
[1772201590799,2.52357397,1961.5,1960.6,0.53163811]
[1772201591018,1.249,1961.5,1960.6,0.53163811]
[1772201591193,1.249,1961.5,1960.8,0.53163811]
[1772201591390,2.52354979,1961.5,1960.8,0.53163811]
[1772201591586,1.249,1961.5,1960.8,0.53163811]
[1772201591797,2.52353581,1961.5,1960.8,0.53163811]
[1772201593213,2.52353752,1961.5,1960.9,1.80656288]
[1772201593712,0.53893667,1961.4,1960.9,1.80656288]
[1772201593915,0.53893667,1961.4,1960.8,1.80657793]
[1772201594622,0.53893667,1961.4,1960.8,1.27493982]
[1772201594799,0.53993667,1961.4,1960.8,1.27493982]
[1772201595186,0.53893667,1961.3,1960.7,5.63159731]
[1772201596492,0.53893667,1961.3,1960.8,0.53163811]
[1772201597208,1.27564956,1961.4,1960.9,1.27492477]
[1772201597599,0.001,1961.4,1961.0,0.53163811]
[1772201597816,0.001,1961.4,1960.9,1.27492477]
[1772201598794,0.001,1961.4,1960.9,1.80656288]
[1772201599886,0.53893667,1961.3,1960.8,1.27496812]
[1772201600615,0.53893667,1961.3,1960.6,5.10038187]
[1772201601513,0.001,1961.4,1960.7,0.53163811]
[1772201602016,0.001,1961.4,1960.9,0.53163811]
[1772201603302,0.53993667,1961.4,1960.9,0.53163811]
[1772201603502,0.53993667,1961.4,1960.8,1.2749898]
[1772201604685,1.81455405,1961.4,1960.8,1.80662791]
[1772201604918,1.27561738,1961.4,1960.9,0.53163811]
[1772201606120,0.001,1961.4,1960.9,0.53163811]
[1772201606326,0.001,1961.4,1961.0,0.0011]
[1772201606520,0.001,1961.3,1961.0,0.0011]
[1772201607017,0.001,1961.3,1961.0,1.27595976]
[1772201608002,0.001,1961.3,1961.0,1.80759787]
[1772201609427,0.53993667,1961.3,1961.0,0.0011]
[1772201609596,0.53993667,1961.3,1960.7,1.80777041]
[1772201610505,0.53993667,1961.3,1960.8,0.53163811]
[1772201611106,0.53993667,1961.3,1960.8,1.80660029]
[1772201611107,1.81464431,1961.3,1960.8,1.80660029]
[1772201612135,0.001,1961.3,1960.9,0.53163811]
[1772201612835,0.001,1961.3,1960.9,1.067]
[1772201613030,0.001,1961.3,1961.0,0.53163811]
[1772201613233,0.53893667,1961.2,1960.7,5.10129274]
[1772201613441,0.53893667,1961.2,1960.4,1.27521663]
[1772201616837,0.53893667,1961.0,1960.4,1.067]
[1772201617039,0.53893667,1961.0,1960.3,0.53163811]
[1772201617285,0.53893667,1961.0,1960.3,1.59863811]
[1772201617409,0.53893667,1961.0,1960.3,1.067]
[1772201617610,0.53893667,1961.0,1960.3,2.87394638]
[1772201618124,1.27477175,1961.2,1960.4,0.53163811]
[1772201618309,1.2757031,1961.3,1960.4,0.53163811]
[1772201618514,0.5138566,1961.3,1960.6,0.55080153]
[1772201618723,0.001,1961.3,1960.9,0.55080153]
[1772201621760,0.001,1961.3,1961.0,1.83669067]
[1772201621923,0.001,1961.3,1961.1,1.069]
[1772201622621,0.001,1961.3,1961.1,1.63083091]
[1772201622816,0.001,1961.7,1961.2,0.56183091]
[1772201623750,0.001,1961.7,1961.3,1.27466476]
[1772201623956,0.001,1961.7,1961.3,2.34566476]
[1772201624459,0.001,1961.7,1961.4,0.56183091]
[1772201624817,0.001,1961.7,1961.3,2.34566476]
[1772201625631,0.001,1961.7,1961.3,2.90749567]
[1772201626141,0.001,1961.7,1961.4,0.56183091]
[1772201626746,0.53491004,1961.7,1961.4,1.073]
[1772201628122,0.53391004,1961.6,1961.4,1.073]
[1772201630150,1.80838966,1961.6,1961.4,1.073]
[1772201630451,0.001,1961.7,1961.4,2.34759541]
[1772201630652,0.001,1961.7,1961.4,1.073]
[1772201630832,0.001,1961.7,1961.4,2.34759121]
[1772201631536,0.001,1961.5,1961.4,2.34759121]
[1772201631738,1.27523304,1962.0,1961.4,2.90942212]
[1772201632241,0.53491004,1962.0,1961.4,1.075]
[1772201632444,0.53491004,1962.0,1961.4,0.826]
[1772201632847,0.53491004,1962.0,1960.9,1.83675568]
[1772201633057,0.53491004,1962.0,1961.0,1.075]
[1772201633361,0.53491004,1962.0,1961.1,1.075]
[1772201633956,0.53491004,1962.0,1961.2,0.56183091]
[1772201634960,0.53391004,1961.8,1961.2,0.56183091]
[1772201635142,0.53391004,1961.8,1961.2,1.83653972]
[1772201635339,0.53391004,1961.8,1961.2,0.56183091]
[1772201636461,0.53391004,1961.8,1961.3,1.074]
[1772201636955,1.27440485,1961.7,1961.3,1.074]
[1772201637829,1.80831489,1961.7,1961.3,1.074]
[1772201639048,1.80844483,1961.5,1961.0,1.63583091]
[1772201639234,0.53391004,1961.4,1961.0,1.63583091]
[1772201639779,1.27453479,1961.5,1961.0,1.63583091]
[1772201640131,1.27453479,1961.5,1961.0,2.91068902]
[1772201640433,5.09797635,1962.0,1961.1,0.56183091]
[1772201640434,1.80824993,1961.8,1961.1,0.56183091]
[1772201640631,1.27431817,1961.9,1961.1,0.56183091]
[1772201640832,1.80916607,1962.0,1961.1,0.56183091]
[1772201641567,1.80916607,1962.0,1961.3,0.56183091]
[1772201641568,1.80912353,1962.0,1961.3,0.56183091]
[1772201641732,1.80912353,1962.0,1961.5,0.56183091]
[1772201642561,0.53491004,1962.0,1961.5,0.56183091]
[1772201643050,0.001,1962.0,1961.5,0.56183091]
[1772201643562,0.001,1962.0,1961.7,0.56183091]
[1772201643768,0.001,1962.0,1961.8,1.074]
[1772201644362,0.001,1962.0,1961.8,1.63583091]
[1772201644558,0.001,1962.3,1961.7,0.56183091]
[1772201644749,0.53491004,1962.3,1961.8,1.075]
[1772201645069,0.53491004,1962.3,1961.7,1.075]
[1772201645969,1.27408011,1962.2,1961.7,1.075]
[1772201646269,0.001,1962.3,1961.8,0.56183091]
[1772201646666,0.001,1962.4,1961.9,0.56183091]
[1772201648143,0.001,1962.4,1962.1,0.56183091]
[1772201648341,0.001,1962.4,1962.3,0.56183091]
[1772201648572,0.001,1962.7,1962.3,0.56183091]
[1772201648979,1.8073271,1963.3,1962.3,0.56183091]
[1772201649156,1.80727962,1963.3,1962.5,0.56183091]
[1772201649347,1.80727962,1963.3,1962.7,0.56183091]
[1772201649956,0.51868434,1963.3,1962.6,1.075]
[1772201650158,1.27343113,1963.2,1962.6,2.86552871]
[1772201650645,0.51868434,1963.1,1962.7,1.075]
[1772201650848,0.51868434,1963.1,1962.5,2.16088379]
[1772201651159,0.51868434,1962.7,1961.4,0.5167716]
[1772201651756,0.51868434,1962.7,1961.5,0.18685624]
[1772201651962,0.51868434,1962.7,1961.8,0.5167716]
[1772201652275,1.27382044,1962.6,1962.0,0.5167716]
[1772201652861,1.79249385,1962.7,1962.0,0.5167716]
[1772201654793,0.51868434,1963.0,1962.1,1.79091664]
[1772201655570,1.79211547,1963.2,1962.3,0.5167716]
[1772201655881,0.51868434,1963.1,1962.4,1.074]
[1772201656078,0.001,1962.9,1962.4,1.074]
[1772201656658,0.001,1962.9,1962.4,2.34788993]
[1772201657898,0.001,1962.9,1962.4,0.5167716]
[1772201658180,0.51968434,1962.9,1962.4,1.075]
[1772201658984,1.79334572,1962.9,1962.4,2.34893196]
[1772201659482,1.7933165,1962.9,1962.4,2.34893196]
[1772201660589,0.51868434,1962.8,1962.3,1.27399171]
[1772201660797,0.51868434,1962.8,1962.4,1.077]
[1772201661367,0.001,1962.9,1962.4,1.5937716]
[1772201661685,0.001,1962.9,1962.5,0.5167716]
[1772201661871,0.51868434,1963.3,1962.5,0.5167716]
[1772201663286,0.51868434,1963.5,1962.7,0.5167716]
[1772201663493,3.99922715,1963.8,1962.9,0.5167716]
[1772201663494,0.51868434,1963.8,1962.9,0.5167716]
[1772201663869,0.51868434,1963.8,1963.0,1.077]
[1772201665190,1.27310689,1963.7,1963.1,1.273496]
[1772201665693,0.51868434,1963.6,1963.0,1.076]
[1772201666581,0.51868434,1963.6,1962.9,1.076]
[1772201668398,0.51868434,1963.4,1962.9,1.076]
[1772201670686,1.27336627,1963.3,1962.9,1.075]
[1772201670893,1.79203829,1963.4,1962.9,1.075]
[1772201672002,0.51868434,1963.3,1962.9,1.075]
[1772201672775,0.51868434,1963.3,1962.9,2.34860659]
[1772201673000,0.51968434,1963.5,1962.9,2.34860659]
[1772201673199,0.51968434,1963.5,1962.9,2.86537819]
[1772201673398,1.7929247,1963.5,1962.9,2.86537819]
[1772201674884,1.79292239,1963.5,1962.9,2.86537819]
[1772201675401,0.001,1963.5,1963.0,0.5167716]
[1772201676185,1.27424044,1963.5,1963.0,0.5167716]
[1772201676407,1.79292478,1963.5,1962.9,2.34860659]
[1772201676606,0.51968434,1963.5,1962.9,2.86537819]
[1772201676907,0.51968434,1963.5,1963.0,1.077]
[1772201677707,0.001,1963.5,1963.0,1.5937716]
[1772201678908,0.001,1963.5,1963.1,1.7985444]
[1772201679073,0.001,1963.5,1963.2,0.5250484]
[1772201679772,0.57376992,1964.0,1963.2,0.5250484]
[1772201680194,0.57376992,1964.0,1963.3,1.079]
[1772201680504,0.57376992,1964.0,1963.4,1.079]
[1772201680871,0.57376992,1964.0,1963.5,1.27323656]
[1772201680872,1.84669075,1964.0,1963.5,1.27323656]
[1772201681294,0.57376992,1964.0,1963.5,1.27323656]
[1772201681490,0.52224072,1964.2,1963.6,0.57109784]
[1772201681689,0.52224072,1964.5,1963.6,0.57109784]
[1772201681897,0.52224072,1964.5,1963.7,1.08]
[1772201682107,0.52224072,1964.5,1963.8,1.08]
[1772201683206,0.52224072,1964.3,1963.8,1.08]
[1772201685197,0.52224072,1964.1,1963.7,1.079]
[1772201686698,0.52224072,1964.1,1963.6,0.826]
[1772201687096,0.52224072,1964.1,1963.5,0.826]
[1772201687406,0.52224072,1963.9,1963.5,0.826]
[1772201688005,0.52224072,1963.9,1963.5,2.09923196]
[1772201689108,0.52224072,1964.0,1963.5,2.09923196]
[1772201690903,1.79502549,1964.2,1963.6,0.57109784]
[1772201692369,1.27258844,1964.5,1963.7,0.57109784]
[1772201692816,0.52224072,1964.4,1963.7,0.57109784]
[1772201693101,0.52224072,1964.4,1963.9,0.57109784]
[1772201693402,0.52224072,1964.4,1963.8,1.08]
[1772201693628,0.52224072,1964.4,1963.8,1.65109784]
[1772201693791,0.52224072,1964.4,1963.5,1.2732109]
[1772201694106,0.52224072,1964.4,1963.6,1.08]
[1772201694306,0.52224072,1964.2,1963.6,2.35424573]
[1772201695203,0.52224072,1964.2,1963.6,1.0811]
[1772201695402,0.52224072,1964.2,1963.6,2.35425518]
[1772201695713,1.27271801,1964.3,1963.7,0.57109784]
[1772201696384,1.27271801,1964.3,1963.8,1.081]
[1772201696703,1.27271801,1964.3,1963.8,2.35403673]
[1772201696908,1.27271801,1964.3,1963.8,1.081]
[1772201697280,0.52224072,1964.2,1963.8,1.081]
[1772201697881,0.52224072,1964.2,1963.8,2.3540403]
[1772201698176,0.52224072,1964.2,1963.8,1.081]
[1772201699179,1.79502984,1964.2,1963.8,1.081]
[1772201699591,1.79502984,1964.2,1963.7,1.27305225]
[1772201699789,0.52224072,1964.1,1963.6,1.27426837]
[1772201700023,0.52224072,1964.1,1963.7,1.082]
[1772201701019,0.52224072,1964.1,1963.6,0.0011]
[1772201701224,0.52224072,1963.9,1963.6,0.0011]
[1772201701947,0.52224072,1963.9,1963.3,0.0011]
[1772201702272,0.52224072,1963.9,1963.0,0.0011]
[1772201702534,0.52224072,1963.7,1963.0,0.0011]
[1772201703117,1.27317172,1963.6,1963.1,0.57109784]
[1772201703530,1.27317172,1963.6,1963.1,1.84458847]
[1772201704234,1.7954003,1963.7,1963.1,1.84458847]
[1772201704420,0.52224072,1963.9,1963.2,0.57109784]
[1772201704620,0.52224072,1963.9,1963.1,1.27349063]
[1772201704621,0.52224072,1963.9,1963.3,1.65309784]
[1772201704822,5.61393962,1964.0,1963.3,1.65309784]
[1772201705031,1.79515314,1964.0,1963.3,1.65309784]
[1772201705234,1.79515314,1964.0,1963.4,1.84439925]
[1772201706016,0.52224072,1964.0,1963.4,1.84439925]
[1772201706211,1.27289035,1964.1,1963.5,0.57109784]
[1772201706436,1.27283597,1964.2,1963.5,0.57109784]
[1772201706621,1.27283597,1964.2,1963.3,0.57109784]
[1772201706622,0.52224072,1964.1,1963.3,0.57109784]
[1772201706945,0.52224072,1964.1,1963.2,0.826]
[1772201707111,0.52224072,1963.9,1963.2,0.826]
[1772201707537,0.52224072,1963.9,1963.0,0.0011]
[1772201707743,0.52224072,1963.8,1963.0,0.0011]
[1772201708875,0.52324072,1963.8,1963.0,0.0011]
[1772201709370,0.52224072,1963.6,1963.0,0.0011]
[1772201709971,0.52224072,1963.6,1962.7,0.0011]
[1772201711038,0.52224072,1963.6,1962.7,1.83408997]
[1772201711266,1.80077931,1963.5,1962.8,1.83291701]
[1772201711469,1.80077931,1963.5,1962.8,0.55923552]
[1772201711667,0.52754275,1963.4,1962.7,1.0821]
[1772201711876,0.52754275,1963.4,1962.7,1.38633552]
[1772201712661,0.52754275,1963.4,1962.7,2.66008404]
[1772201712974,1.27323656,1963.5,1962.8,0.55923552]
[1772201713556,1.27323656,1963.5,1962.9,0.55923552]
[1772201713753,1.80077931,1963.5,1962.9,0.55923552]
[1772201713963,1.80077931,1963.5,1962.8,1.081]
[1772201714659,1.80077931,1963.5,1962.8,2.35468778]
[1772201715076,0.52754275,1963.4,1962.8,1.081]
[1772201715290,0.52754275,1963.4,1962.8,2.3546823]
[1772201715462,1.27336627,1963.3,1962.8,2.91391782]
[1772201716058,1.27336627,1963.3,1962.9,0.55923552]
[1772201716686,5.09307237,1963.5,1962.9,0.55923552]
[1772201716881,1.27318943,1963.6,1962.9,0.55923552]
[1772201718707,5.09243557,1963.7,1962.9,0.55923552]
[1772201718708,5.09243557,1963.7,1963.0,1.27356087]
[1772201718860,5.09243557,1963.7,1963.1,0.55923552]